bitfinex/quotes_BTCUSD_20251114
["timestamp","ask_amount","ask_price","bid_price","bid_amount"]
[1763147703061,0.001,95499.0,95493.0,0.20943923]
[1763147703062,0.001,95499.0,95498.0,0.2528472]
[1763147703303,9.99548001,95500.0,95498.0,0.32001889]
[1763147703714,9.99548001,95500.0,95498.0,0.25274116]
[1763147703907,0.01937039,95499.0,95498.0,0.25274116]
[1763147706621,0.01937039,95499.0,95498.0,0.04341874]
[1763147707008,0.029918,95499.0,95498.0,0.04341874]
[1763147707215,0.019918,95499.0,95498.0,0.04341874]
[1763147707380,0.019918,95499.0,95498.0,0.09464753]
[1763147708373,0.019918,95499.0,95498.0,0.43859037]
[1763147708374,0.00054761,95499.0,95498.0,0.43859037]
[1763147708592,0.00054761,95499.0,95498.0,0.45626031]
[1763147708808,0.00054761,95499.0,95498.0,0.41864753]
[1763147709272,9.99548001,95500.0,95498.0,0.41864753]
[1763147709273,2.5340507,95500.0,95499.0,0.36344501]
[1763147709408,2.38894611,95500.0,95499.0,0.68644501]
[1763147709609,2.35749651,95500.0,95499.0,0.57584501]
[1763147709818,2.32604691,95500.0,95499.0,0.57584501]
[1763147710019,2.20885124,95500.0,95499.0,0.57584501]
[1763147710218,1.83587168,95500.0,95499.0,0.57584501]
[1763147710423,1.36109276,95500.0,95499.0,0.58584501]
[1763147710643,1.25927984,95500.0,95499.0,0.58584501]
[1763147710858,1.22783024,95500.0,95499.0,0.57584501]
[1763147711081,0.68014625,95500.0,95499.0,0.58884501]
[1763147711280,0.19544168,95500.0,95499.0,0.59084501]
[1763147711482,0.0002,95540.0,95529.0,0.57577924]
[1763147712116,1e-08,95530.0,95529.0,0.57577924]
[1763147712273,0.0002,95540.0,95539.0,0.57575733]
[1763147712274,1e-08,95540.0,95539.0,0.57575733]
[1763147713082,1e-08,95540.0,95539.0,0.6071907]
[1763147714024,1e-08,95540.0,95539.0,0.6081907]
[1763147714621,1e-08,95540.0,95539.0,0.6091907]
[1763147716007,1e-08,95540.0,95539.0,0.57775733]
[1763147716180,1e-08,95540.0,95539.0,0.57675733]
[1763147716379,0.00112201,95540.0,95539.0,0.57675733]
[1763147717576,0.00112201,95540.0,95539.0,0.57775733]
[1763147717786,0.00112201,95540.0,95539.0,0.57675733]
[1763147717976,0.00112201,95540.0,95539.0,0.57575733]
[1763147718152,0.00112201,95540.0,95539.0,0.57675733]
[1763147718367,0.00112201,95540.0,95539.0,0.57575733]
[1763147718740,0.0002,95600.0,95569.0,0.57569162]
[1763147718938,0.0002,95600.0,95569.0,0.72436961]
[1763147718939,0.09427835,95590.0,95569.0,0.72436961]
[1763147719138,0.00102054,95570.0,95569.0,0.72436961]
[1763147719954,0.00102054,95570.0,95569.0,0.72536961]
[1763147720158,1e-08,95570.0,95569.0,0.72536961]
[1763147720760,1e-08,95570.0,95569.0,0.72636961]
[1763147722408,1e-08,95570.0,95569.0,0.21127288]
[1763147722733,1e-08,95570.0,95569.0,0.25469162]
[1763147722947,1e-08,95570.0,95569.0,0.21127288]
[1763147723146,1e-08,95570.0,95569.0,0.25469162]
[1763147723560,1e-08,95570.0,95569.0,0.25369162]
[1763147723757,1e-08,95570.0,95569.0,0.25269162]
[1763147724012,1e-08,95570.0,95569.0,0.25369162]
[1763147724793,1e-08,95570.0,95569.0,0.25269162]
[1763147726039,1e-08,95570.0,95569.0,0.25369162]
[1763147726204,1e-08,95570.0,95569.0,0.25469162]
[1763147726403,1e-08,95570.0,95569.0,0.25369162]
[1763147726789,1e-08,95570.0,95569.0,0.25469162]
[1763147728438,0.0002,95600.0,95599.0,0.2092072]
[1763147728616,0.0002,95600.0,95599.0,0.57562594]
[1763147729790,0.0002,95600.0,95599.0,0.57662594]
[1763147730939,0.0002,95600.0,95599.0,0.57762594]
[1763147731181,0.0002,95600.0,95599.0,0.57662594]
[1763147731823,0.0002,95600.0,95599.0,0.57562594]
[1763147732217,0.0002,95600.0,95599.0,0.57662594]
[1763147732618,0.0002,95600.0,95599.0,0.62662594]
[1763147732777,0.0002,95600.0,95599.0,0.62562594]
[1763147732984,0.0002,95600.0,95599.0,0.62662594]
[1763147733183,0.0002,95600.0,95599.0,0.62762594]
[1763147733425,0.0002,95600.0,95599.0,0.62662594]
[1763147733793,0.0002,95600.0,95599.0,0.62762594]
[1763147734233,0.00102015,95600.0,95599.0,0.62762594]
[1763147734408,0.00102015,95600.0,95599.0,0.5842072]
[1763147734970,0.00102015,95600.0,95569.0,0.03142126]
[1763147735170,0.00102015,95600.0,95550.0,0.384708]
[1763147735171,0.09427835,95581.0,95571.0,0.2092685]
[1763147735371,0.09427835,95581.0,95580.0,0.5322466]
[1763147735604,0.09427835,95581.0,95580.0,0.2092466]
[1763147736032,0.09427835,95581.0,95580.0,0.2112466]
[1763147736436,0.09427835,95581.0,95579.0,0.11744813]
[1763147736663,0.09427835,95581.0,95572.0,0.20926631]
[1763147736940,0.09427835,95581.0,95580.0,0.2112466]
[1763147737105,0.09427835,95581.0,95580.0,0.13863057]
[1763147737342,0.09427835,95581.0,95580.0,0.07215793]
[1763147737485,0.09427835,95581.0,95579.0,0.324]
[1763147737685,0.09427835,95581.0,95580.0,0.2092466]
[1763147737890,0.0002,95600.0,95596.0,0.20921232]
[1763147738095,0.0002,95600.0,95579.0,0.324]
[1763147738096,0.09427835,95580.0,95579.0,0.324]
[1763147738292,0.09427835,95580.0,95579.0,0.53424879]
[1763147738705,0.09427835,95580.0,95579.0,0.53224879]
[1763147739688,0.09427835,95580.0,95579.0,0.53324879]
[1763147739898,0.09427835,95580.0,95579.0,0.53424879]
[1763147740366,0.11357137,95580.0,95579.0,0.53424879]
[1763147740579,0.11357137,95580.0,95579.0,0.53324879]
[1763147740794,0.11357137,95580.0,95579.0,0.53424879]
[1763147741047,0.11357137,95580.0,95579.0,0.53324879]
[1763147741504,0.09427835,95580.0,95579.0,0.53424879]
[1763147741956,0.09427835,95580.0,95579.0,0.53224879]
[1763147742168,0.1135701,95580.0,95579.0,0.53324879]
[1763147742378,0.1135701,95580.0,95579.0,0.53424879]
[1763147743274,0.09427835,95580.0,95579.0,0.63177716]
[1763147743912,0.09427835,95596.0,95595.0,0.20921596]
[1763147744132,0.11357971,95596.0,95595.0,0.20921596]
[1763147744363,0.11357971,95596.0,95593.0,0.2092199]
[1763147744588,0.11357971,95596.0,95594.0,0.20921744]
[1763147744589,0.02930136,95595.0,95594.0,0.20921744]
[1763147745013,0.01930136,95595.0,95594.0,0.20921744]
[1763147746109,0.01930136,95595.0,95594.0,0.26332707]
[1763147746520,0.01998485,95595.0,95594.0,0.26332707]
[1763147747432,0.01998485,95595.0,95594.0,0.58632707]
[1763147747647,0.01998485,95595.0,95594.0,0.53221744]
[1763147747862,0.01998485,95595.0,95594.0,0.57563618]
[1763147748327,0.01998485,95595.0,95594.0,0.57663618]
[1763147749622,0.01998485,95595.0,95594.0,0.57763618]
[1763147750062,0.01998485,95595.0,95594.0,0.63174581]
[1763147751187,0.01998485,95595.0,95594.0,0.63074581]
[1763147751432,0.01998485,95595.0,95594.0,0.62974581]
[1763147751659,0.01998485,95595.0,95594.0,0.63374581]
[1763147752312,0.01998485,95595.0,95594.0,0.62974581]
[1763147752519,0.01998485,95595.0,95594.0,0.63074581]
[1763147752762,0.0002,95600.0,95599.0,0.25262594]
[1763147754523,0.0002,95600.0,95599.0,0.14999665]
[1763147754742,0.0002,95600.0,95598.0,0.20920906]
[1763147754951,0.0002,95600.0,95599.0,0.2092072]
[1763147755141,0.0002,95600.0,95596.0,0.20921377]
[1763147755341,0.0002,95600.0,95599.0,0.5322072]
[1763147755546,0.0002,95600.0,95598.0,0.20920906]
[1763147755820,0.0002,95600.0,95599.0,0.19106282]
[1763147756021,0.0002,95600.0,95599.0,0.13880794]
[1763147756236,0.0002,95600.0,95599.0,0.04901966]
[1763147756453,0.0002,95600.0,95599.0,0.07094038]
[1763147757303,0.0002,95600.0,95599.0,0.07194038]
[1763147757749,0.0002,95600.0,95599.0,0.07094038]
[1763147757951,0.0002,95600.0,95599.0,0.07194038]
[1763147760384,1e-08,95600.0,95599.0,0.39494038]
[1763147760668,0.09427835,95641.0,95639.0,0.20911971]
[1763147760931,0.08376,95683.0,95639.0,0.20911971]
[1763147760932,0.01074122,95680.0,95639.0,0.26322933]
[1763147761153,0.0002,95680.0,95639.0,0.26322933]
[1763147761366,0.00617403,95680.0,95639.0,0.20911971]
[1763147762160,0.09427835,95655.0,95639.0,0.20911971]
[1763147762574,0.09427835,95655.0,95639.0,0.21011971]
[1763147763356,0.09427835,95655.0,95639.0,0.53411971]
[1763147763723,0.09427835,95655.0,95639.0,0.21011971]
[1763147763999,0.09427835,95655.0,95639.0,0.20911971]
[1763147764198,0.09427835,95655.0,95639.0,0.21311971]
[1763147764606,0.09427835,95655.0,95639.0,0.21111971]
[1763147764923,0.09427835,95655.0,95639.0,0.002]
[1763147765126,0.00597403,95654.0,95639.0,0.002]
[1763147765282,0.00597403,95654.0,95639.0,0.004]
[1763147765458,0.0102,95640.0,95639.0,0.002]
[1763147765665,0.09427835,95632.0,95620.0,0.37424228]
[1763147765866,0.09427835,95632.0,95614.0,0.20917231]
[1763147765867,0.01,95625.0,95610.0,0.38470143]
[1763147766073,0.09427835,95611.0,95610.0,0.38470143]
[1763147766297,0.09427835,95611.0,95590.0,0.0375755]
[1763147766503,0.09427835,95611.0,95609.0,0.2091846]
[1763147767058,0.09427835,95611.0,95609.0,0.11766633]
[1763147767358,0.01,95637.0,95610.0,0.03137746]
[1763147767534,0.0002,95640.0,95639.0,0.20911971]
[1763147768160,0.0002,95640.0,95630.0,0.37424228]
[1763147768161,0.01,95637.0,95622.0,0.20915576]
[1763147768346,0.0002,95640.0,95610.0,0.01045915]
[1763147768348,0.01,95625.0,95610.0,0.01045915]
[1763147768713,0.01,95625.0,95624.0,0.20915251]
[1763147769108,0.11025238,95634.0,95633.0,0.20913283]
[1763147769365,0.01,95629.0,95624.0,0.20915251]
[1763147769583,0.09427835,95611.0,95580.0,0.01046243]
[1763147769782,0.09427835,95611.0,95608.0,0.20918611]
[1763147769783,0.01,95609.0,95608.0,0.20918611]
[1763147770004,0.09427835,95611.0,95610.0,0.20918313]
[1763147770634,0.09427835,95611.0,95600.0,0.37424228]
[1763147770635,0.09427835,95611.0,95580.0,0.01046243]
[1763147770858,0.09427835,95591.0,95580.0,0.01046243]
[1763147771055,0.09427835,95591.0,95589.0,0.20922757]
[1763147771284,0.09427835,95591.0,95580.0,0.01046243]
[1763147771491,0.09427835,95591.0,95570.0,0.01046353]
[1763147771716,0.09427835,95571.0,95570.0,0.21973422]
[1763147771924,0.09427835,95571.0,95560.0,0.3847069]
[1763147771925,0.09427835,95571.0,95560.0,0.01046462]
[1763147772143,0.09427835,95571.0,95569.0,0.20927199]
[1763147772820,0.09427835,95571.0,95560.0,0.3847069]
[1763147772821,0.01,95564.0,95560.0,0.21975502]
[1763147773074,0.01,95564.0,95560.0,0.01046462]
[1763147773268,0.01,95564.0,95563.0,0.20928602]
[1763147773478,0.10427835,95571.0,95570.0,0.20927069]
[1763147774598,0.09427835,95571.0,95570.0,0.20927069]
[1763147774799,0.01,95569.0,95568.0,0.20927332]
[1763147775001,0.09427835,95571.0,95570.0,0.20927069]
[1763147775382,0.09427835,95571.0,95568.0,0.20927332]
[1763147775592,0.08927835,95571.0,95560.0,0.01046462]
[1763147775792,0.09927835,95571.0,95570.0,0.20927069]
[1763147776893,0.08927835,95571.0,95570.0,0.20927069]
[1763147778273,0.08927835,95571.0,95560.0,0.01046462]
[1763147778274,0.01,95563.0,95543.0,0.323]
[1763147778479,0.01,95563.0,95540.0,0.01046682]
[1763147778480,0.01,95563.0,95561.0,0.20928893]
[1763147780751,0.01,95563.0,95540.0,0.01046682]
[1763147780971,0.08927835,95571.0,95541.0,0.20933421]
[1763147780972,0.09427835,95542.0,95541.0,0.20933421]
[1763147781180,0.09427835,95542.0,95541.0,0.53233421]
[1763147781387,0.09427835,95542.0,95541.0,0.20933421]
[1763147782876,0.09427835,95542.0,95541.0,0.53233421]
[1763147783320,0.09427835,95542.0,95541.0,0.57575295]
[1763147783633,0.08927835,95571.0,95550.0,0.01046572]
[1763147783836,0.09427835,95551.0,95550.0,0.84718527]
[1763147784120,0.09427835,95551.0,95550.0,0.21977802]
[1763147784436,0.09127835,95551.0,95549.0,0.2093123]
[1763147784653,0.01,95549.0,95546.0,0.20932282]
[1763147784834,0.09127835,95551.0,95540.0,0.01046682]
[1763147784835,0.10127835,95551.0,95550.0,0.20931449]
[1763147785039,0.10127835,95551.0,95548.0,0.20931741]
[1763147785040,0.01,95549.0,95548.0,0.20931741]
[1763147785358,0.09127835,95551.0,95550.0,0.20931449]
[1763147786132,0.09127835,95551.0,95549.0,0.20931519]
[1763147786133,0.10127835,95551.0,95549.0,0.20931519]
[1763147786364,0.10127835,95551.0,95548.0,0.20931741]
[1763147786365,0.01,95549.0,95548.0,0.20931741]
[1763147786780,0.09127835,95551.0,95548.0,0.20931741]
[1763147786781,0.09127835,95551.0,95550.0,0.20931449]
[1763147789483,0.08927835,95571.0,95570.0,0.20927069]
[1763147790287,0.08927835,95571.0,95559.0,0.20929259]
[1763147790492,0.08927835,95571.0,95569.0,0.20927091]
[1763147791965,0.08927835,95571.0,95570.0,0.323]
[1763147792365,0.01055392,95630.0,95590.0,0.2092269]
[1763147792568,0.00597403,95610.0,95590.0,0.2092269]
[1763147793403,0.11370618,95591.0,95570.0,0.01146353]
[1763147793609,0.01,95589.0,95588.0,0.20923128]
[1763147793749,0.09427835,95591.0,95590.0,0.2102269]
[1763147794656,0.09427835,95591.0,95590.0,0.2112269]
[1763147795112,0.09427835,95591.0,95589.0,0.20922909]
[1763147795113,0.01597403,95610.0,95609.0,0.20918532]
[1763147795357,0.0193007,95610.0,95590.0,0.001]
[1763147795562,0.01,95606.0,95604.0,0.20919463]
[1763147795771,0.01,95606.0,95590.0,0.001]
[1763147795772,0.09427835,95591.0,95590.0,0.001]
[1763147795989,0.09427835,95591.0,95590.0,0.20922471]
[1763147796202,0.09427835,95591.0,95590.0,0.21022471]
[1763147797320,0.09427835,95591.0,95590.0,0.20922471]
[1763147800179,0.0838,95625.0,95590.0,0.20922471]
[1763147800180,0.01,95612.0,95610.0,0.20918313]
[1763147800412,0.11364146,95611.0,95610.0,0.20918313]
[1763147801271,0.11364146,95611.0,95610.0,0.26329275]
[1763147801490,0.09427835,95611.0,95610.0,0.26329275]
[1763147802829,0.09427835,95611.0,95610.0,0.05410962]
[1763147803254,0.1236295,95611.0,95610.0,0.05410962]
[1763147803868,0.09427835,95593.0,95591.0,0.20922446]
[1763147804122,0.09427835,95593.0,95590.0,0.01046134]
[1763147804123,0.10427835,95593.0,95590.0,0.01046134]
[1763147804372,0.10427835,95593.0,95591.0,0.20922371]
[1763147804801,0.09427835,95593.0,95592.0,0.23014477]
[1763147805027,0.09427835,95593.0,95592.0,0.20922252]
[1763147805520,0.09427835,95593.0,95589.0,0.20922848]
[1763147805719,0.10427835,95593.0,95591.0,0.2092244]
[1763147805928,0.01,95592.0,95591.0,0.2092244]
[1763147806991,0.01,95591.0,95580.0,0.01046243]
[1763147807220,0.01042784,95591.0,95570.0,0.01046353]
[1763147807431,0.01,95576.0,95575.0,0.2092594]
[1763147807648,0.10427835,95571.0,95550.0,0.66593358]
[1763147807860,0.01,95561.0,95560.0,0.20929129]
[1763147808328,0.01,95561.0,95550.0,0.01046572]
[1763147808539,0.01,95561.0,95558.0,0.20929564]
[1763147808751,0.09427835,95571.0,95550.0,0.01046572]
[1763147808752,0.09427835,95551.0,95550.0,0.01046572]
[1763147809187,0.09427835,95551.0,95550.0,0.21977802]
[1763147810768,0.09427835,95551.0,95550.0,0.22077802]
[1763147810978,0.09427835,95551.0,95530.0,0.03852852]
[1763147810979,0.10427835,95551.0,95530.0,0.03852852]
[1763147811204,0.09427835,95531.0,95530.0,1.17023128]
[1763147811374,0.09427835,95531.0,95530.0,0.21982403]
[1763147811742,0.09427835,95531.0,95530.0,0.54282403]
[1763147812517,0.09427835,95551.0,95550.0,0.20931449]
[1763147813173,0.09427835,95551.0,95550.0,0.55091467]
[1763147813397,0.09427835,95571.0,95570.0,0.20927069]
[1763147814852,0.09427835,95571.0,95569.0,0.20927275]
[1763147814853,0.01,95570.0,95569.0,0.20927275]
[1763147815284,0.01,95569.0,95568.0,0.20927507]
[1763147815717,0.09427835,95571.0,95556.0,0.323]
[1763147815936,0.09427835,95571.0,95551.0,0.01860018]
[1763147815937,0.01932647,95570.0,95557.0,0.02092991]
[1763147816143,0.01,95560.0,95559.0,0.20929478]
[1763147816359,0.01,95569.0,95568.0,0.20927507]
[1763147816841,0.02932713,95569.0,95568.0,0.20927507]
[1763147817275,0.10427835,95571.0,95570.0,0.20927069]
[1763147817485,0.12360905,95571.0,95570.0,0.20927069]
[1763147817923,0.12360905,95571.0,95566.0,0.2092787]
[1763147817924,0.11360905,95571.0,95566.0,0.2092787]
[1763147818184,0.01,95566.0,95565.0,0.2092799]
[1763147818539,0.01597403,95570.0,95569.0,0.20927288]
[1763147818750,0.02933306,95570.0,95569.0,0.20927288]
[1763147819358,0.01933306,95570.0,95569.0,0.22787306]
[1763147820341,0.02933306,95570.0,95569.0,0.22787306]
[1763147821039,0.0416942,95570.0,95569.0,0.01860018]
[1763147821284,0.02933306,95570.0,95569.0,0.01860018]
[1763147821952,0.03530709,95570.0,95569.0,0.01860018]
[1763147822180,0.02933306,95570.0,95569.0,0.01860018]
[1763147824064,0.03033306,95570.0,95569.0,0.01860018]
[1763147824261,0.03630709,95570.0,95569.0,0.00116251]
[1763147824491,0.01,95559.0,95547.0,0.323]
[1763147824700,0.02630709,95570.0,95528.0,0.02813512]
[1763147824701,0.09427835,95546.0,95528.0,0.02813512]
[1763147825068,0.01,95542.0,95541.0,0.20933359]
[1763147825273,0.09427835,95546.0,95541.0,0.20933359]
[1763147825274,0.09427835,95546.0,95545.0,0.20932544]
[1763147826607,0.09427835,95546.0,95545.0,0.21032544]
[1763147827034,0.09427835,95546.0,95545.0,0.20932544]
[1763147827283,0.09427835,95546.0,95545.0,0.21132544]
[1763147828338,0.09427835,95546.0,95545.0,0.002]
[1763147828537,0.09427835,95546.0,95545.0,0.001]
[1763147828740,0.09427835,95546.0,95545.0,0.02193254]
[1763147829412,0.09427835,95546.0,95545.0,0.001]
[1763147829631,0.09427835,95546.0,95545.0,0.02093254]
[1763147830042,0.09427835,95546.0,95545.0,0.02193254]
[1763147830259,0.09427835,95546.0,95545.0,0.001]
[1763147830737,0.09427835,95546.0,95545.0,0.324]
[1763147830956,0.00597403,95570.0,95545.0,0.324]
[1763147830957,0.01597403,95570.0,95569.0,0.20927288]
[1763147831166,0.01,95570.0,95569.0,0.20927288]
[1763147831384,0.09427835,95571.0,95569.0,0.20927288]
[1763147831596,0.09427835,95593.0,95591.0,0.20922471]
[1763147831597,0.00597403,95592.0,95591.0,0.20922471]
[1763147831808,0.01931273,95592.0,95591.0,0.20922471]
[1763147832043,0.09427835,95593.0,95591.0,0.20922471]
[1763147833085,0.001,95592.0,95591.0,0.20922471]
[1763147833551,0.09427835,95666.0,95591.0,0.20922471]
[1763147833552,0.09427835,95619.0,95612.0,0.20917876]
[1763147835557,0.09427835,95619.0,95612.0,0.21017876]
[1763147835994,0.09427835,95619.0,95612.0,0.21117876]
[1763147836295,0.09427835,95619.0,95612.0,0.53417876]
[1763147837828,0.09427835,95619.0,95612.0,0.002]
[1763147838092,0.00597403,95618.0,95612.0,0.21117876]
[1763147838346,0.09427835,95619.0,95612.0,0.21117876]
[1763147838558,0.09427835,95619.0,95612.0,0.21017876]
[1763147839148,0.09427835,95619.0,95612.0,0.20917876]
[1763147839352,0.09427835,95619.0,95612.0,0.21017876]
[1763147839560,0.09427835,95619.0,95612.0,0.21117876]
[1763147839796,0.01,95615.0,95612.0,0.21117876]
[1763147840166,0.0106984,95613.0,95612.0,0.002]
[1763147840367,0.01622,95613.0,95612.0,0.002]
[1763147840981,0.01622,95613.0,95612.0,0.001]
[1763147841395,0.01024597,95613.0,95612.0,0.001]
[1763147841608,0.02949679,95613.0,95612.0,0.001]
[1763147841804,0.03547082,95613.0,95612.0,0.001]
[1763147841997,0.03647082,95613.0,95612.0,0.001]
[1763147842117,0.04450474,95613.0,95597.0,0.20921158]
[1763147842344,0.10427835,95598.0,95597.0,0.20921158]
[1763147842792,0.09427835,95598.0,95597.0,0.20921158]
[1763147845816,0.10427835,95598.0,95597.0,0.20921158]
[1763147846380,0.01,95595.0,95593.0,0.20922034]
[1763147847219,0.09427835,95598.0,95581.0,0.1498]
[1763147847418,0.09427835,95582.0,95570.0,0.01046353]
[1763147847620,0.01,95576.0,95574.0,0.20925988]
[1763147847911,0.09427835,95582.0,95581.0,0.2092466]
[1763147849657,0.09427835,95598.0,95597.0,0.20921158]
[1763147850511,0.10427835,95598.0,95597.0,0.20921158]
[1763147850714,0.01,95597.0,95596.0,0.20921355]
[1763147851066,0.01042784,95597.0,95580.0,0.1498]
[1763147851289,0.09427835,95581.0,95580.0,0.1498]
[1763147851515,0.09427835,95581.0,95580.0,0.3590466]
[1763147852683,0.09427835,95581.0,95580.0,0.3600466]
[1763147853001,0.09427835,95581.0,95580.0,0.3590466]
[1763147853204,0.09427835,95581.0,95580.0,0.1508]
[1763147853380,0.09427835,95581.0,95555.0,0.2433]
[1763147853381,0.09427835,95581.0,95561.0,0.02806426]
[1763147853759,0.01,95561.0,95560.0,0.20929259]
[1763147853896,0.10427835,95565.0,95564.0,0.20928383]
[1763147854097,0.09427835,95565.0,95564.0,0.20928383]
[1763147857762,0.09427835,95565.0,95563.0,0.20928583]
[1763147857763,0.01,95564.0,95550.0,0.01046572]
[1763147857968,0.09427835,95565.0,95551.0,0.2093123]
[1763147857969,0.01,95552.0,95551.0,0.2093123]
[1763147858170,0.01,95543.0,95536.0,0.03143561]
[1763147858398,0.09427835,95537.0,95536.0,0.53234297]
[1763147858931,0.09427835,95537.0,95536.0,0.20934297]
[1763147859437,0.09427835,95537.0,95536.0,0.21034297]
[1763147859638,0.09427835,95537.0,95536.0,0.20934297]
[1763147859838,0.09427835,95537.0,95536.0,0.21034297]
[1763147860051,0.09427835,95537.0,95536.0,0.20934297]
[1763147860255,0.09427835,95537.0,95535.0,0.20934297]
[1763147860256,0.01,95536.0,95535.0,0.20934681]
[1763147860697,0.09427835,95537.0,95530.0,0.04191443]
[1763147860698,0.01,95531.0,95530.0,0.01046791]
[1763147860916,0.01,95531.0,95530.0,0.21982622]
[1763147861371,0.01,95531.0,95527.0,0.03399508]
[1763147861372,0.01,95528.0,95527.0,0.00254638]
[1763147861571,0.09427835,95537.0,95500.0,0.38439553]
[1763147861818,0.01,95524.0,95523.0,0.20937248]
[1763147862976,0.10427835,95537.0,95536.0,0.20934516]
[1763147863178,0.11347114,95537.0,95535.0,0.20934584]
[1763147863422,0.09427835,95537.0,95504.0,0.323]
[1763147863734,0.01,95526.0,95525.0,0.20936927]
[1763147864483,0.01,95526.0,95524.0,0.20937142]
[1763147864708,0.01780784,95536.0,95494.0,0.41887214]
[1763147864945,0.01,95516.0,95515.0,0.20939119]
[1763147867299,0.01,95516.0,95514.0,0.20939269]
[1763147867508,0.09427835,95515.0,95514.0,0.20939269]
[1763147868117,0.10427835,95515.0,95514.0,0.20974852]
[1763147868342,0.10427835,95515.0,95514.0,0.00035583]
[1763147870010,0.08527144,95515.0,95514.0,0.00035583]
[1763147870393,0.07627144,95515.0,95514.0,0.00035583]
[1763147870805,0.07427144,95515.0,95514.0,0.00035583]
[1763147871158,0.07427144,95515.0,95514.0,0.02129516]
[1763147871610,0.07327144,95515.0,95514.0,0.00035583]
[1763147872747,0.07327144,95515.0,95514.0,0.02129516]
[1763147872966,0.07327144,95515.0,95514.0,0.00035583]
[1763147873190,0.09427835,95537.0,95536.0,0.20934516]
[1763147874642,0.09427835,95537.0,95535.0,0.20934718]
[1763147876676,0.09218443,95537.0,95536.0,0.1498]
[1763147876884,0.09218443,95537.0,95535.0,0.20934718]
[1763147877570,0.09218443,95537.0,95535.0,0.20934665]
[1763147878398,0.09218443,95537.0,95535.0,0.21034665]
[1763147878612,0.09218443,95537.0,95535.0,0.20934665]
[1763147880432,0.04755,95584.0,95564.0,0.20928383]
[1763147880642,0.11352132,95565.0,95564.0,0.20928383]
[1763147880858,0.09427835,95565.0,95543.0,0.323]
[1763147881074,0.09427835,95544.0,95543.0,0.20932983]
[1763147882537,0.09427835,95544.0,95543.0,0.21032983]
[1763147882941,0.09427835,95544.0,95543.0,0.20932983]
[1763147883633,0.09427835,95544.0,95541.0,0.20933421]
[1763147883890,0.09427835,95544.0,95542.0,0.2093314]
[1763147884957,0.01930348,95543.0,95530.0,0.01046791]
[1763147885173,0.01930348,95542.0,95540.0,0.20933574]
[1763147885384,0.01930348,95541.0,95540.0,0.20933574]
[1763147885595,0.01931325,95543.0,95540.0,0.20933574]
[1763147885813,0.01,95538.0,95518.0,0.0283106]
[1763147886051,0.00597403,95540.0,95537.0,0.20934211]
[1763147886267,0.01931306,95539.0,95537.0,0.20934211]
[1763147886515,0.08217306,95538.0,95532.0,0.20935202]
[1763147886723,0.01931306,95537.0,95518.0,0.00024634]
[1763147886936,0.01931306,95537.0,95523.0,0.20937208]
[1763147887142,0.01931306,95537.0,95532.0,0.20935374]
[1763147887354,0.01931306,95536.0,95535.0,0.20934735]
[1763147887567,0.02530288,95543.0,95535.0,0.20934735]
[1763147887845,0.01932885,95542.0,95541.0,0.20933421]
[1763147888277,0.01932885,95543.0,95542.0,0.323]
[1763147888486,0.09427835,95544.0,95542.0,0.323]
[1763147888487,0.09427835,95544.0,95543.0,0.20932983]
[1763147888716,0.1457,95591.0,95564.0,0.20928383]
[1763147888934,0.11361361,95565.0,95564.0,0.20928383]
[1763147890655,0.11361361,95565.0,95564.0,0.21028383]
[1763147890865,0.11361361,95565.0,95564.0,0.001]
[1763147891079,0.17925361,95565.0,95564.0,0.001]
[1763147891295,0.18925361,95565.0,95564.0,0.001]
[1763147891992,0.17925361,95565.0,95552.0,0.20930928]
[1763147892205,0.17925361,95565.0,95540.0,0.01046682]
[1763147892206,0.11936929,95564.0,95550.0,0.20931357]
[1763147892411,0.11936929,95564.0,95540.0,0.01046682]
[1763147892412,0.01933526,95563.0,95561.0,0.20928996]
[1763147892622,0.01933526,95562.0,95542.0,0.20933202]
[1763147892852,0.04788,95564.0,95541.0,0.20933421]
[1763147892853,0.09427835,95543.0,95541.0,0.20933421]
[1763147893268,0.09427835,95565.0,95560.0,0.20929259]
[1763147893482,0.09427835,95565.0,95564.0,0.20928383]
[1763147893698,0.11358992,95565.0,95564.0,0.20928383]
[1763147893926,0.11458992,95565.0,95564.0,0.20928383]
[1763147894177,0.11358992,95565.0,95564.0,0.20928383]
[1763147895032,0.11358992,95565.0,95564.0,0.21028383]
[1763147895681,0.09427835,95565.0,95564.0,0.21028383]
[1763147896123,0.09406,95587.0,95586.0,0.20923566]
[1763147896554,0.1597,95587.0,95586.0,0.20923566]
[1763147898110,0.1607,95587.0,95586.0,0.20923566]
[1763147898526,0.1597,95587.0,95586.0,0.20923566]
[1763147899155,0.1597,95587.0,95583.0,0.20924222]
[1763147899369,0.09406,95587.0,95585.0,0.20923753]
[1763147899786,0.09427835,95588.0,95587.0,0.20923347]
[1763147899989,0.09427835,95588.0,95586.0,0.20923547]
[1763147904538,0.04788,95608.0,95584.0,0.20923564]
[1763147904539,0.00597403,95607.0,95603.0,0.20919845]
[1763147904752,0.04788,95608.0,95603.0,0.20919845]
[1763147904955,0.04788,95618.0,95603.0,0.20919845]
[1763147905160,0.00597403,95617.0,95603.0,0.20919845]
[1763147907718,0.10025238,95619.0,95603.0,0.20919845]
[1763147907925,0.09427835,95619.0,95603.0,0.20919845]
[1763147908559,0.09427835,95619.0,95603.0,0.21019845]
[1763147908975,0.00597403,95618.0,95603.0,0.21019845]
[1763147909153,0.04788,95614.0,95603.0,0.21019845]
[1763147909405,0.09427835,95619.0,95603.0,0.21019845]
[1763147909787,0.04788,95615.0,95603.0,0.21119845]
[1763147910018,0.09427835,95619.0,95603.0,0.21119845]
[1763147910224,0.09427835,95619.0,95603.0,0.53319845]
[1763147910448,0.04788,95614.0,95603.0,0.53319845]
[1763147910927,0.09427835,95619.0,95603.0,0.53319845]
[1763147911343,0.0838,95641.0,95633.0,0.20913283]
[1763147912593,0.0838,95641.0,95614.0,0.04341874]
[1763147912594,0.15478835,95634.0,95631.0,0.323]
[1763147912810,0.09427835,95634.0,95633.0,0.20913283]
[1763147913474,0.09427835,95634.0,95633.0,0.21013283]
[1763147913680,0.09427835,95634.0,95633.0,0.20913283]
[1763147914522,0.09427835,95634.0,95618.0,0.323]
[1763147914523,0.15478835,95634.0,95611.0,0.323]
[1763147914743,0.09427835,95618.0,95617.0,0.53216782]
[1763147915818,0.15478835,95618.0,95617.0,0.53216782]
[1763147916051,0.15478835,95618.0,95610.0,0.01045915]
[1763147916052,0.15478835,95618.0,95611.0,0.20918095]
[1763147916264,0.15478835,95618.0,95600.0,0.01046025]
[1763147916265,0.09427835,95618.0,95617.0,0.001]
[1763147916743,0.15478835,95618.0,95617.0,0.001]
[1763147916947,0.15478835,95618.0,95616.0,0.20916925]